bitfinex/quotes_ETHUSD_20250222
["timestamp","ask_amount","ask_price","bid_price","bid_amount"]
[1740187909369,2.237,2684.3,2683.9,4.46079261]
[1740187909370,0.10364324,2684.2,2683.9,4.46079261]
[1740187909570,2.237,2684.3,2683.9,4.46079261]
[1740187910010,0.10364324,2684.2,2683.9,4.46078261]
[1740187910400,2.237,2684.3,2683.9,4.46078261]
[1740187910726,2.237,2684.3,2684.0,3.72578]
[1740187910895,0.10364324,2684.2,2683.9,4.46080261]
[1740187911228,0.10364324,2684.1,2683.9,4.46080261]
[1740187911426,2.237,2684.3,2683.9,4.46080261]
[1740187911709,0.10364324,2684.0,2683.9,4.46080261]
[1740187911920,2.237,2684.2,2683.9,4.46080261]
[1740187912071,0.10364324,2684.0,2683.9,4.46080261]
[1740187912274,2.237,2684.2,2683.9,4.46080261]
[1740187912570,0.10364324,2684.0,2683.9,4.46080261]
[1740187912804,2.237,2684.2,2683.9,4.46080261]
[1740187913080,2.237,2684.3,2683.9,4.46080261]
[1740187913402,2.237,2684.3,2683.9,0.73495261]
[1740187913804,0.10364324,2684.2,2683.9,0.73495261]
[1740187913976,2.237,2684.3,2683.9,0.73495261]
[1740187914176,0.10364324,2684.2,2683.9,0.73495261]
[1740187914511,2.237,2684.3,2683.9,0.73495261]
[1740187914713,2.34064324,2684.1,2683.9,0.73495261]
[1740187915011,2.237,2683.9,2683.7,6.40940947]
[1740187915343,0.10423748,2683.8,2683.7,10.13557947]
[1740187916435,2.237,2684.0,2683.7,10.13557947]
[1740187916593,0.10422774,2683.8,2683.7,10.13557947]
[1740187917299,5.96306,2683.8,2683.7,5.36900947]
[1740187917493,6.06728774,2683.8,2683.7,5.36900947]
[1740187917915,2.34122774,2683.8,2683.7,5.36900947]
[1740187919437,2.34122774,2683.8,2683.7,9.09519947]
[1740187920282,0.10422774,2683.8,2683.7,9.09519947]
[1740187920485,2.237,2684.2,2683.7,9.09510947]
[1740187920685,2.237,2684.2,2683.8,4.49756]
[1740187920880,5.96256,2684.2,2683.8,0.7715]
[1740187921085,5.96256,2684.2,2683.8,4.49755]
[1740187922015,5.96256,2684.2,2683.8,8.22352]
[1740187922321,2.237,2684.2,2683.8,13.59244947]
[1740187922486,2.237,2684.2,2683.8,9.86647947]
[1740187922687,2.237,2684.2,2683.8,13.59242947]
[1740187923087,2.237,2684.2,2683.8,9.86645947]
[1740187923832,2.237,2684.2,2683.8,13.59244947]
[1740187924004,2.237,2684.2,2683.8,9.86645947]
[1740187924834,5.96385,2683.3,2683.1,9.47e-06]
[1740187925133,5.96431,2682.9,2682.8,0.27933231]
[1740187925440,2.237,2682.9,2682.6,9.47e-06]
[1740187925643,3.72704,2683.1,2682.7,0.75519034]
[1740187926300,3.72719,2683.0,2682.7,0.75519034]
[1740187926486,3.72704,2683.1,2682.7,0.75519034]
[1740187926686,3.72717,2683.0,2682.7,0.75519034]
[1740187926913,2.241,2683.2,2682.7,0.75519034]
[1740187927123,3.72707,2683.1,2682.7,0.75519034]
[1740187927945,7.45418,2683.1,2682.7,0.75519034]
[1740187928098,3.72707,2683.1,2682.7,0.75519034]
[1740187928636,5.96792,2683.2,2682.7,0.75519034]
[1740187929124,3.72705,2683.1,2682.7,0.75519034]
[1740187929330,3.83112188,2683.1,2682.7,0.75519034]
[1740187929991,3.72741,2682.9,2682.6,0.27500947]
[1740187930188,3.72752,2682.8,2682.6,0.27500947]
[1740187930393,0.10407188,2682.7,2682.6,0.27500947]
[1740187930626,3.72741,2682.9,2682.6,0.275]
[1740187930837,0.10407188,2682.8,2682.6,0.275]
[1740187931031,0.10407188,2682.8,2682.4,4.49949]
[1740187931032,3.83152188,2682.8,2682.5,0.275]
[1740187931236,0.55,2682.5,2682.1,1.25]
[1740187931526,4.50745,2682.6,2682.1,4.97834]
[1740187931949,0.10222044,2682.5,2682.2,3.72826]
[1740187932148,0.10222044,2682.5,2682.3,3.72814]
[1740187932350,7.27752,2682.8,2682.3,3.72814]
[1740187932560,0.10222044,2682.4,2682.3,3.72814]
[1740187932733,7.27752,2682.8,2682.3,7.45628]
[1740187932928,0.1015575,2682.4,2682.3,3.72814]
[1740187933254,3.72711,2683.1,2682.6,4.50615]
[1740187933455,3.72718,2683.0,2682.6,4.50615]
[1740187933625,3.0,2682.9,2682.6,0.7785]
[1740187934369,3.0,2682.9,2682.5,3.72784]
[1740187934528,3.72747,2682.8,2682.3,4.50664]
[1740187934939,3.72747,2682.8,2682.3,4.78364]
[1740187936363,3.72801,2682.4,2682.2,9.47e-06]
[1740187936562,3.72814,2682.3,2682.2,9.47e-06]
[1740187937127,3.72825,2682.3,2682.1,1.99229821]
[1740187937657,0.55,2682.3,2682.1,1.25]
[1740187937860,2.241,2682.4,2682.1,1.25]
[1740187938159,2.241,2682.6,2682.1,4.97841]
[1740187938351,3.0,2682.5,2682.1,4.97841]
[1740187939357,7.27786,2682.5,2682.1,4.97841]
[1740187939721,7.27786,2682.5,2682.1,4.97831]
[1740187939722,3.55,2682.5,2682.1,4.97831]
[1740187939963,3.0,2682.5,2682.1,4.97831]
[1740187940188,3.0,2682.5,2682.1,10.09017942]
[1740187940390,3.0,2682.5,2682.1,6.36177942]
[1740187940659,2.241,2682.4,2682.1,6.36177942]
[1740187940859,2.241,2682.4,2682.1,4.97831]
[1740187941175,2.241,2682.4,2682.2,3.72827]
[1740187941373,2.241,2682.4,2682.1,4.97831]
[1740187943267,0.10156726,2682.3,2682.1,4.97831]
[1740187946273,0.10156726,2682.3,2682.1,4.9784]
[1740187946810,0.10156726,2682.3,2682.1,8.70675]
[1740187946981,0.10156726,2682.3,2682.1,4.97835]
[1740187947172,0.10156726,2682.3,2682.1,4.97834]
[1740187947593,0.10156726,2682.3,2682.1,8.70665]
[1740187947793,0.10156726,2682.3,2682.1,4.97831]
[1740187948005,8.96873,2682.6,2682.1,4.97831]
[1740187948384,0.10132347,2682.5,2682.1,4.97831]
[1740187949819,0.10132347,2682.5,2682.1,1.25]
[1740187949820,5.96928,2682.2,2682.1,1.25]
[1740187949999,8.96928,2682.2,2682.1,1.25]
[1740187950304,5.34212844,2682.2,2682.1,1.25]
[1740187950805,9.07040844,2682.2,2682.1,1.25]
[1740187950991,5.34212844,2682.2,2682.1,1.25]
[1740187952220,9.07040844,2682.2,2682.1,1.25]
[1740187953077,5.34212844,2682.2,2682.1,1.25]
[1740187953509,9.07040844,2682.2,2682.1,1.25]
[1740187955011,9.84340844,2682.2,2682.1,1.25]
[1740187960290,9.07040844,2682.2,2682.1,1.25]
[1740187962994,5.34212844,2682.2,2682.1,1.25]
[1740187964024,0.10112844,2682.2,2682.1,4.97842]
[1740187964321,2.241,2682.4,2682.3,3.72814]
[1740187964748,4.51303,2683.1,2682.3,0.8109]
[1740187964889,2.241,2682.9,2682.6,3.72764]
[1740187965090,2.241,2682.9,2682.5,3.72785]
[1740187965330,9.04652,2683.5,2682.4,3.7279]
[1740187965331,2.19252353,2685.7,2685.2,3.72407]
[1740187965649,0.7859,2685.7,2685.2,3.72404]
[1740187965793,0.1,2686.7,2685.1,3.92034705]
[1740187965794,0.7859,2686.1,2685.1,3.92034705]
[1740187965993,0.7859,2686.1,2685.6,3.72343]
[1740187966408,0.7806,2686.4,2685.4,3.57021346]
[1740187966614,0.7806,2686.8,2686.2,3.72271]
[1740187966798,0.7806,2686.8,2685.9,3.72304]
[1740187966998,3.72212,2686.7,2685.9,3.72304]
[1740187967234,3.72222,2686.6,2685.9,1.10166235]
[1740187967439,3.72222,2686.6,2685.9,0.298]
[1740187967635,4.50261,2686.8,2686.0,7.29318346]
[1740187967836,0.7806,2686.8,2686.0,3.57021346]
[1740187968020,4.27216,2686.7,2686.0,3.57021346]
[1740187968223,3.72216,2686.7,2686.0,3.57021346]
[1740187968432,3.72216,2686.7,2686.0,7.29318346]
[1740187968613,3.72166,2687.0,2686.1,3.72283]
[1740187968825,3.72162,2687.0,2686.3,0.7704]
[1740187969003,7.50197,2687.2,2686.3,0.7704]
[1740187969206,3.72173,2687.0,2686.3,0.7704]
[1740187969513,3.72186,2686.9,2686.3,0.7704]
[1740187970120,3.72191,2686.8,2686.3,0.7704]
[1740187970532,0.55,2686.9,2686.3,0.77040947]
[1740187970730,3.72176,2686.9,2686.3,0.77040947]
[1740187971943,3.7219,2686.8,2686.3,0.77040947]
[1740187973256,0.09054168,2686.7,2686.3,0.77040947]
[1740187973433,3.7219,2686.8,2686.3,0.77040947]
[1740187973646,3.81258168,2686.7,2686.3,0.77040947]
[1740187973946,0.09054168,2686.7,2686.3,0.77040947]
[1740187974254,3.7219,2686.8,2686.3,0.77040947]
[1740187974546,0.09054168,2686.7,2686.3,0.77040947]
[1740187974727,3.7219,2686.8,2686.3,0.77040947]
[1740187974936,0.09054168,2686.6,2686.3,0.77040947]
[1740187975134,3.7219,2686.8,2686.3,0.77040947]
[1740187975357,0.08730804,2686.5,2686.3,0.77040947]
[1740187975509,3.7219,2686.8,2686.3,0.77040947]
[1740187976046,0.08730804,2686.7,2686.3,0.77040947]
[1740187976410,0.08730804,2686.6,2686.3,0.77040947]
[1740187976606,7.44397,2686.8,2686.3,0.77040947]
[1740187976820,0.08730804,2686.7,2686.3,0.77040947]
[1740187977029,3.72204,2686.7,2686.3,0.77040947]
[1740187977344,0.08730804,2686.6,2686.3,0.77040947]
[1740187978247,3.72177,2686.9,2686.3,5.49905337]
[1740187978548,0.8075,2686.7,2686.3,9.47e-06]
[1740187978740,0.8075,2686.7,2685.8,3.72324]
[1740187978741,0.1,2684.7,2684.1,5.37]
[1740187978912,0.8075,2685.0,2684.2,0.61354]
[1740187978913,0.1,2684.3,2684.2,0.61354]
[1740187979108,0.1,2684.3,2684.1,0.73564898]
[1740187979109,0.1,2685.0,2684.1,1.04264898]
[1740187979356,0.2,2685.3,2685.0,0.7654]
[1740187979543,0.2,2685.3,2685.1,0.448991]
[1740187979742,0.2,2685.3,2685.0,0.7654]
[1740187980215,3.92402,2685.3,2685.0,0.7654]
[1740187980553,0.2,2685.3,2685.1,0.307]
[1740187983017,0.1,2685.5,2685.1,4.03116]
[1740187983421,0.1,2685.5,2685.2,3.72407]
[1740187983622,0.1,2685.5,2685.2,1.26780007]
[1740187983817,0.2,2686.0,2685.3,3.77607862]
[1740187984124,0.2,2686.0,2685.4,5.37]
[1740187984339,3.82331,2685.8,2685.4,5.37]
[1740187984562,0.1,2685.8,2685.4,5.37]
[1740187984855,0.08026563,2685.7,2685.4,6.10701358]
[1740187985065,0.3,2686.0,2685.6,3.72356]
[1740187985219,0.07785343,2685.9,2685.6,3.72356]
[1740187985426,0.07785343,2685.9,2685.6,7.44704]
[1740187985650,0.07785343,2685.9,2685.6,5.57116243]
[1740187985849,0.07785343,2685.9,2685.6,1.84768243]
[1740187986027,0.07785343,2685.9,2685.6,2.58624334]
[1740187986368,0.2,2686.0,2685.6,2.58624334]
[1740187986525,0.2,2686.0,2685.6,6.30976334]
[1740187986724,0.2,2686.0,2685.7,0.70751633]
[1740187986940,0.07785343,2685.9,2685.8,3.7232]
[1740187987119,0.2,2686.0,2685.8,3.7232]
[1740187987326,0.2,2686.0,2685.7,4.43090633]
[1740187987571,3.8226,2686.3,2685.7,4.43090633]
[1740187987572,0.07800004,2685.9,2685.7,0.70751633]
[1740187987752,4.52974,2686.6,2685.5,0.7654]
[1740187987753,4.02305,2686.0,2685.5,0.7654]
[1740187987929,0.07800004,2685.8,2685.5,1.0704]
[1740187988121,3.72319,2685.9,2685.5,1.0704]
[1740187988326,3.80145004,2685.7,2685.5,1.0704]
[1740187988571,3.72319,2685.9,2685.5,1.0704]
[1740187988728,0.07800004,2685.6,2685.5,1.0704]
[1740187989063,0.3,2686.0,2685.6,3.72352]
[1740187989658,4.02302,2686.0,2685.5,5.88695152]
[1740187990167,0.1,2685.8,2685.5,1.0704]
[1740187990333,0.3,2685.6,2685.5,0.7654]
[1740187990665,4.02356,2685.6,2685.5,0.305]
[1740187990865,0.3,2685.6,2685.5,0.305]
[1740187991040,0.2,2685.6,2685.5,4.0287]
[1740187991363,0.2,2685.8,2685.7,3.72342]
[1740187991553,0.2,2685.8,2685.6,3.72356]
[1740187992074,0.2,2685.8,2685.7,3.72342]
[1740187992567,0.2,2686.0,2685.7,0.7818]
[1740187992764,0.2,2686.0,2685.8,3.72314]
[1740187993335,0.2,2686.0,2685.7,0.7818]
[1740187993685,0.2,2686.0,2685.8,3.72326]
[1740187993835,0.2,2686.0,2685.9,3.72314]
[1740187994239,0.1,2686.4,2686.1,3.72284]
[1740187994462,0.07561626,2686.3,2686.1,3.72284]
[1740187994788,0.07561626,2686.3,2686.2,3.72273]
[1740187994935,0.07561626,2686.3,2686.2,5.004287]
[1740187995133,0.1,2686.4,2686.2,5.004287]
[1740187995328,0.2,2686.5,2686.3,0.7818]
[1740187995549,0.2,2686.7,2686.4,4.02545]
[1740187995766,0.2,2686.7,2686.4,5.673]
[1740187995986,0.2,2686.7,2686.4,9.39542]
[1740187996191,0.2,2686.7,2686.4,6.13614365]
[1740187996572,4.02176,2686.9,2686.5,3.72231]
[1740187997418,4.02176,2686.9,2686.4,6.13614365]
[1740187997616,4.02176,2686.9,2686.4,9.85858365]
[1740187997789,4.02176,2686.9,2686.6,0.34659898]
[1740187997961,3.72203,2686.7,2686.6,0.46314365]
[1740187998301,3.82203,2686.7,2686.6,0.46314365]
[1740187998652,4.02203,2686.7,2686.6,0.46314365]
[1740187999453,4.02203,2686.7,2686.6,0.11654467]
[1740187999815,6.26303,2686.7,2686.5,0.44344101]
[1740188000097,2.541,2686.7,2686.3,0.302]
[1740188000257,3.82245,2686.4,2686.1,5.37]
[1740188000462,4.02273,2686.2,2686.1,5.37]
[1740188000659,4.02273,2686.2,2685.9,0.302]
[1740188000660,3.723,2686.0,2685.9,0.302]
[1740188001400,3.823,2686.0,2685.9,0.302]
[1740188001701,3.72328,2685.8,2685.7,5.672]
[1740188001902,4.023,2686.0,2685.7,5.672]
[1740188002605,3.72324,2685.9,2685.7,5.672]
[1740188003316,0.0735317,2685.8,2685.7,5.37]
[1740188003487,0.0735317,2685.8,2685.7,9.66062]
[1740188003873,0.2,2686.0,2685.7,9.66062]
[1740188004213,0.2,2686.0,2685.9,3.72314]
[1740188004685,0.3,2686.2,2685.8,0.34652116]
[1740188004887,0.3,2686.2,2686.0,3.72298]
[1740188005085,0.2,2686.0,2685.8,0.34652116]
[1740188005315,0.2,2686.0,2685.8,9.43973116]
[1740188005617,0.3,2686.2,2686.0,4.49664]
[1740188005999,0.3,2686.2,2686.0,4.49662]
[1740188006375,0.3,2686.2,2686.1,3.72286]
[1740188006800,0.1,2686.2,2686.1,3.72286]
[1740188007512,0.1,2686.2,2686.1,0.34652116]
[1740188008833,0.3,2686.2,2686.0,4.4966]
[1740188009575,0.07314988,2686.1,2686.0,4.4966]
[1740188010292,0.07314988,2686.1,2686.0,0.7737]
[1740188010718,0.07314988,2686.1,2686.0,1.0737]
[1740188010924,0.07314988,2686.1,2686.0,1.42078311]
[1740188012225,0.07314988,2686.1,2686.0,5.14378311]
[1740188012551,0.07314988,2686.1,2686.0,1.42078311]
[1740188012764,1.05937184,2686.2,2686.0,1.42078311]
[1740188013053,1.05937184,2686.2,2686.0,5.14371311]
[1740188013215,0.07354155,2686.1,2686.0,5.14371311]
[1740188014610,0.1,2686.2,2686.1,3.72286]
[1740188014937,0.17354155,2686.2,2686.1,3.72286]
[1740188015150,0.17354155,2686.2,2686.0,1.42078311]
[1740188015151,0.17354155,2686.2,2686.0,5.14378311]
[1740188015447,0.17354155,2686.2,2686.0,4.37008311]
[1740188015747,0.17354155,2686.2,2686.0,4.023]
[1740188015965,0.17354155,2686.2,2686.0,0.3]
[1740188016107,0.07354155,2686.2,2686.1,3.72286]
[1740188016308,2.541,2686.4,2686.1,3.72286]
[1740188016533,0.07354155,2686.2,2686.1,7.44572]
[1740188016753,0.2,2686.4,2686.3,3.72259]
[1740188018462,0.27339468,2686.4,2686.3,3.72259]
[1740188018659,0.07339468,2686.4,2686.3,3.72259]
[1740188019042,0.3,2686.6,2686.3,3.72259]
[1740188019043,0.3,2686.6,2686.4,3.72243]
[1740188021259,0.7709,2686.8,2686.4,3.72243]
[1740188021260,0.3,2686.8,2686.4,3.72235]
[1740188021464,0.3,2686.8,2686.6,3.72216]
[1740188021849,0.1,2686.8,2686.7,3.72203]
[1740188022046,0.1,2686.8,2686.6,3.72209]
[1740188022732,0.1,2686.8,2686.5,5.37]
[1740188023555,0.1,2686.8,2686.5,9.09227]
[1740188023719,0.1,2686.8,2686.5,10.373748]
[1740188023911,0.2,2687.0,2686.8,3.72189]
[1740188024516,0.07395275,2686.9,2686.8,3.72189]
[1740188025865,0.07395275,2686.9,2686.5,6.651478]
[1740188025866,0.07395275,2686.9,2686.6,3.72215]
[1740188026072,0.07395275,2686.9,2686.7,1.4095838]
[1740188026860,0.07395275,2686.9,2686.7,5.1315338]
[1740188027938,0.07395275,2686.9,2686.7,1.4095838]
[1740188028272,0.07395275,2686.9,2686.8,0.76124773]
[1740188028569,0.07395275,2686.9,2686.8,4.48313773]
[1740188029174,0.07395275,2686.9,2686.8,9.85313773]
[1740188029574,0.07395275,2686.9,2686.8,6.13124773]
[1740188032087,4.65711275,2686.9,2686.8,5.37]
[1740188033669,3.72251,2686.4,2686.0,0.8109]
[1740188033968,3.72251,2686.4,2686.3,1.04947455]
[1740188034371,0.3,2686.3,2685.9,5.37]
[1740188034675,0.3,2686.3,2686.0,0.294]
[1740188034676,3.72281,2686.2,2686.0,0.294]
[1740188034972,3.72286,2686.1,2686.0,0.294]
[1740188035135,4.02262,2686.3,2686.0,0.294]
[1740188035671,0.2,2686.3,2686.0,0.294]
[1740188035870,0.2,2686.3,2686.2,3.72273]
[1740188036181,0.2,2686.5,2686.2,3.72273]
[1740188036373,0.2,2686.3,2686.2,3.72273]
[1740188036547,0.2,2686.3,2686.2,4.66800045]
[1740188036731,0.2,2686.3,2686.2,5.48290045]
[1740188037127,3.0,2686.8,2686.2,5.48290045]
[1740188037128,0.1,2686.8,2686.7,3.72203]
[1740188037331,0.2,2686.9,2686.7,9.09203]
[1740188037532,0.2,2687.1,2686.8,0.8149]
[1740188037735,0.2,2687.1,2687.0,3.72162]
[1740188037965,0.2,2687.1,2686.9,3.72176]
[1740188038165,0.2,2687.1,2686.8,1.724103]
[1740188038367,3.92158,2687.1,2686.8,0.909203]
[1740188038675,0.3,2686.9,2686.7,5.37]
[1740188039183,0.2,2686.9,2686.7,9.09203]
[1740188039332,0.1,2686.8,2686.7,5.37]
[1740188039676,0.2,2686.9,2686.7,5.37]
[1740188039860,0.2,2686.9,2686.7,6.11479353]
[1740188040031,3.92176,2686.9,2686.7,6.11479353]
[1740188040430,0.2,2686.9,2686.7,6.11479353]
[1740188040943,0.2,2686.9,2686.7,9.83674353]
[1740188041145,0.2,2686.9,2686.7,6.11479353]
[1740188042781,3.92178,2686.9,2686.7,6.11479353]
[1740188043189,0.2,2686.9,2686.7,6.11479353]
[1740188043737,3.92176,2686.9,2686.7,6.11479353]
[1740188044190,0.005,2688.4,2686.9,3.72176]
[1740188044398,0.005,2688.4,2687.8,0.8149]
[1740188044684,0.105,2688.4,2687.9,4.01526]
[1740188044915,0.1,2688.2,2687.9,0.295]
[1740188045112,0.1,2688.2,2687.8,0.8149]
[1740188045262,0.06389325,2688.1,2687.8,1.1099]
[1740188045463,0.1,2687.9,2687.4,6.1849]
[1740188045668,0.1,2687.6,2687.4,5.37]
[1740188045905,0.1,2687.6,2687.3,7.64]
[1740188045906,0.06389325,2687.5,2687.3,0.76161211]
[1740188046101,0.06389325,2687.5,2687.3,4.48270211]
[1740188047022,0.06389325,2687.5,2687.4,3.72106]
[1740188047589,3.71916,2688.8,2687.5,7.44186]
[1740188047924,0.1,2688.8,2688.5,3.71953]
[1740188048421,0.05298547,2688.7,2688.6,3.7194]
[1740188048633,0.1,2689.4,2689.0,3.71871]
[1740188048968,0.05338693,2689.3,2689.0,3.77076801]
[1740188049325,0.1,2689.1,2688.8,5.37]
[1740188049868,0.05338693,2689.0,2688.9,3.71899]
[1740188050074,0.05338693,2689.0,2688.9,4.53389]
[1740188050393,0.05401333,2689.0,2688.9,4.53389]
[1740188050570,0.1,2689.4,2688.9,4.53379]
[1740188050770,0.05595211,2689.0,2688.9,4.53379]
[1740188050972,0.1,2689.4,2688.9,4.53379]
[1740188051217,0.1,2689.4,2689.0,4.14899371]
[1740188051521,0.1,2689.4,2689.1,3.71861]
[1740188051873,0.1,2689.4,2689.2,3.71857]
[1740188052073,0.1,2689.4,2689.1,3.71861]
[1740188052527,0.1,2689.4,2689.0,4.14899371]
[1740188052841,3.71847,2689.3,2688.9,0.8149]
[1740188053044,3.71847,2689.3,2688.8,5.37]
[1740188053395,0.1,2689.4,2688.8,5.37]
[1740188053922,0.1,2689.4,2688.9,3.71898]
[1740188054137,3.81841,2689.4,2688.8,9.08911]
[1740188055241,3.81841,2689.4,2688.9,3.71897]
[1740188056759,3.71851,2689.3,2688.8,5.37]
[1740188057056,3.71879,2689.1,2688.8,5.37]
[1740188057356,0.1,2689.2,2688.8,9.08911]
[1740188057859,0.1,2689.6,2688.8,6.80135666]
[1740188058154,0.1,2689.6,2689.0,3.71878]
[1740188058325,3.81803,2689.6,2689.1,3.71869]
[1740188058526,0.05594232,2689.5,2689.1,3.71869]
[1740188058727,0.05594232,2689.5,2689.2,0.294]
[1740188058924,0.05594232,2689.5,2689.4,3.7183]
[1740188059167,0.05594232,2689.5,2689.3,3.71842]
[1740188059347,0.05594232,2689.5,2689.2,4.01254]
[1740188059655,0.05594232,2689.5,2689.3,3.71841]
[1740188060513,0.05594232,2689.5,2689.3,5.1417819]
[1740188061356,0.05594232,2689.5,2689.3,1.4233719]
[1740188061865,0.05594232,2689.5,2689.2,4.77329]
[1740188062009,0.05594232,2689.5,2689.3,3.71841]
[1740188062369,0.05594232,2689.5,2689.4,3.7183]
[1740188062665,0.05594232,2689.5,2689.2,1.0548]
[1740188062815,0.05594232,2689.5,2689.2,4.77331]
[1740188063009,0.05594232,2689.5,2689.2,2.4781799]
[1740188063214,0.05594232,2689.5,2689.4,0.73491771]
[1740188067781,0.05594232,2689.5,2689.4,6.10491771]
[1740188069130,3.77410232,2689.5,2689.4,6.10491771]
[1740188069387,0.05594232,2689.5,2689.4,6.10491771]
[1740188070967,3.77410232,2689.5,2689.4,6.10491771]
[1740188071169,0.05594232,2689.5,2689.4,6.10491771]
[1740188071556,3.77410232,2689.5,2689.4,6.10491771]
[1740188072644,6.01510232,2689.5,2689.4,0.73491771]
[1740188074439,9.01510232,2689.5,2689.4,0.73491771]
[1740188075445,9.82520232,2689.5,2689.4,0.73491771]
[1740188077666,6.10704232,2689.5,2688.9,5.37]
[1740188077869,3.71885,2689.0,2688.9,5.37]
[1740188078183,3.77548697,2689.0,2688.9,5.37]
[1740188079289,6.80708697,2689.0,2688.9,6.09950276]
[1740188079455,3.71982,2688.3,2688.2,5.37]
[1740188079659,3.71982,2688.3,2688.2,5.66]
[1740188079868,3.77630044,2688.3,2688.2,6.28804326]
[1740188080764,0.05648044,2688.3,2688.2,7.03266225]
[1740188081288,3.77630044,2688.3,2688.2,7.03266225]
[1740188081779,0.05648044,2688.3,2688.2,7.03266225]
[1740188082084,0.1,2688.5,2688.2,7.03266225]
[1740188082325,0.05623583,2688.3,2688.2,7.03266225]
[1740188082497,0.1,2688.5,2688.2,10.75262225]
[1740188082669,0.1,2688.5,2688.3,1.15542223]
[1740188082847,3.8196,2688.5,2688.3,1.15542223]
[1740188083150,3.8196,2688.5,2688.2,7.03266225]
[1740188083894,3.71969,2688.4,2688.2,7.03266225]
[1740188085592,3.71982,2688.3,2688.2,7.03266225]
[1740188090123,3.71969,2688.4,2688.2,7.03266225]
[1740188090425,3.71982,2688.3,2688.2,7.03266225]
[1740188090626,5.96082,2688.3,2688.2,7.03266225]
[1740188091220,3.71982,2688.3,2688.2,7.03266225]
[1740188093330,3.77569383,2688.3,2688.2,7.03266225]
[1740188094844,3.87569383,2688.3,2688.2,6.11461899]
[1740188095026,3.72051,2687.8,2687.7,0.7644]
[1740188095229,3.82065,2687.7,2687.6,5.37]
[1740188095741,3.72124,2687.3,2687.0,13.01]
[1740188095941,3.72134,2687.2,2687.0,5.37]
[1740188096112,3.82148,2687.1,2687.0,5.37]
[1740188096445,3.87665898,2687.1,2687.0,5.37]
[1740188097230,0.15517898,2687.1,2687.0,5.37]
[1740188097744,3.87665898,2687.1,2687.0,6.12081532]
[1740188098829,0.15517898,2687.1,2687.0,6.12081532]
[1740188099028,0.15517898,2687.1,2687.0,6.73289685]
[1740188099233,0.15517898,2687.1,2687.0,10.45451685]
[1740188099433,0.15517898,2687.1,2687.0,6.73289685]
[1740188100372,0.05517898,2687.1,2687.0,11.20731685]
[1740188100663,0.1,2687.7,2687.0,14.77285375]
[1740188100867,3.72025,2688.0,2687.0,14.77285375]
[1740188100868,0.1,2688.0,2687.7,3.72063]
[1740188101025,0.1,2687.8,2687.6,0.287]
[1740188101520,0.1,2688.0,2687.6,0.287]
[1740188101841,0.1,2688.0,2687.7,3.7726637]
[1740188102046,0.1,2687.8,2687.7,4.55071307]
[1740188102873,0.1,2688.0,2687.7,4.55071307]
[1740188103070,0.1,2688.1,2687.7,4.49858937]
[1740188103237,3.7208,2687.6,2687.5,0.287]
[1740188103564,0.1,2687.7,2687.5,3.72093]
[1740188103768,0.1,2687.7,2687.5,4.45471184]
[1740188103936,0.1,2687.9,2687.5,4.45473184]
[1740188104324,3.72012,2688.1,2687.5,0.73390184]
[1740188104529,0.1,2688.1,2687.6,7.92533708]
[1740188104892,0.1,2688.1,2687.8,3.72044]
[1740188105671,0.1,2688.1,2688.0,3.72023]
[1740188106425,0.1,2688.1,2687.9,5.37]
[1740188106639,0.1,2688.1,2687.9,9.70265]
[1740188106862,0.1,2688.1,2687.9,13.42302]
[1740188107068,3.72079,2687.6,2687.5,0.73390184]
[1740188107267,0.1,2687.7,2687.5,0.73390184]
[1740188107764,0.1,2687.8,2687.3,5.37]
[1740188107965,0.1,2687.6,2687.3,6.15870854]
[1740188108127,3.72095,2687.5,2687.3,6.44570854]
[1740188108328,7.44196,2687.5,2687.3,6.44570854]
[1740188108527,0.05462103,2687.4,2687.3,5.657]
[1740188108965,3.77568103,2687.4,2687.3,5.657]
[1740188109656,0.05462103,2687.4,2687.3,5.657]
[1740188110162,4.67928103,2687.4,2687.3,5.657]
[1740188110670,3.82177,2686.9,2686.7,0.287]
[1740188110829,0.05383773,2686.8,2686.7,0.287]
[1740188111433,0.05383773,2686.8,2686.5,6.1984]
[1740188111870,0.1,2686.9,2686.6,0.287]
[1740188112078,0.0533382,2686.8,2686.7,0.74517492]
[1740188112850,0.0533382,2686.8,2686.7,5.19026241]
[1740188113057,0.1,2687.2,2686.9,3.72171]
[1740188113275,0.1,2687.0,2686.7,1.46823241]
[1740188113471,3.82163,2687.0,2686.7,0.74517492]
[1740188113679,0.05299539,2686.9,2686.7,0.74517492]
[1740188115485,3.82189,2686.8,2686.7,0.74517492]
[1740188115641,3.87483641,2686.8,2686.7,0.74517492]
[1740188116339,0.15294641,2686.8,2686.7,0.74517492]
[1740188116535,3.87483641,2686.8,2686.7,0.74517492]
[1740188117256,0.15294641,2686.8,2686.7,0.74517492]
[1740188119447,0.15294641,2686.8,2686.7,4.46720492]
[1740188119784,0.15294641,2686.8,2686.7,0.74517492]
[1740188120351,0.05294641,2686.8,2686.7,4.46720492]
[1740188120772,0.1,2687.0,2686.7,4.46720492]
[1740188120947,0.05285823,2686.8,2686.7,4.46720492]
[1740188121144,0.1,2687.0,2686.7,4.46720492]
[1740188121341,0.05285823,2686.8,2686.7,4.46720492]
[1740188121583,0.1,2687.0,2686.7,4.46720492]
[1740188121785,0.05285823,2686.8,2686.7,4.46720492]
[1740188121969,0.1,2687.0,2686.8,3.72188]
[1740188122173,0.1,2687.0,2686.7,2.12971541]
[1740188122340,0.05285823,2686.9,2686.7,2.12971541]
[1740188122545,0.1,2686.8,2686.7,5.85172541]
[1740188123060,0.15284845,2686.8,2686.7,5.85172541]